fUST/lending_fUST_20250819
["ID","MTS","AMOUNT","RATE_DAILY","PERIOD"]
[380200463,1755606669272,-151.0,0.0002,2]
[380200464,1755606669281,-480.0,0.0002,2]
[380200465,1755606669290,-480.0,0.0002,2]
[380200466,1755606669299,-488.04,0.0002,2]
[380200467,1755606669308,-480.0,0.0002,2]
[380200468,1755606669317,-480.0,0.0002,2]
[380200469,1755606669327,-480.0,0.0002,2]
[380200470,1755606669336,-554.67,0.0002,2]
[380200471,1755606669345,-480.0,0.0002,2]
[380200472,1755606669354,-442.85844728,0.0002,2]
[380200473,1755606669364,-1102.08,0.0002,2]
[380200474,1755606669373,-480.0,0.0002,2]
[380200475,1755606669382,-480.0,0.0002,2]
[380200476,1755606669391,-604.1,0.0002,2]
[380200477,1755606669400,-480.0,0.0002,2]
[380200478,1755606669548,-480.0,0.0002,2]
[380200479,1755606669559,-480.0,0.0002,2]
[380200480,1755606669568,-480.0,0.0002,2]
[380200481,1755606669578,-1056.9,0.0002,2]
[380200482,1755606669587,-480.0,0.0002,2]
[380200483,1755606669597,-480.0,0.0002,2]
[380200484,1755606669606,-480.0,0.0002,2]
[380200485,1755606669615,-1149.67,0.0002,2]
[380200486,1755606669625,-881.95,0.0002,2]
[380200487,1755606669634,-480.0,0.0002,2]
[380200488,1755606669643,-899.0,0.0002,2]
[380200489,1755606669652,-480.0,0.0002,2]
[380200490,1755606669661,-300.18777866,0.0002,2]
[380200491,1755606669670,-480.0,0.0002,2]
[380200492,1755606669679,-1339.97,0.0002,2]
[380200493,1755606669689,-480.0,0.0002,2]
[380200494,1755606669698,-480.0,0.0002,2]
[380200495,1755606669707,-3307.83,0.0002,2]
[380200496,1755606669717,-480.0,0.0002,2]
[380200497,1755606669726,-3318.85,0.0002,2]
[380200498,1755606669735,-480.0,0.0002,2]
[380200499,1755606669744,-480.0,0.0002,2]
[380200500,1755606669753,-572.78,0.0002,2]
[380200501,1755606669762,-480.0,0.0002,2]
[380200502,1755606669771,-480.0,0.0002,2]
[380200503,1755606669780,-151.0,0.0002,2]
[380200504,1755606669789,-925.96,0.0002,2]
[380200505,1755606669798,-151.0,0.0002,2]
[380200506,1755606669807,-480.0,0.0002,2]
[380200507,1755606669816,-577.50173248,0.0002,2]
[380200508,1755606669826,-3696.94,0.0002,2]
[380200509,1755606669834,-480.0,0.0002,2]
[380200510,1755606669844,-480.0,0.0002,2]
[380200511,1755606669853,-480.0,0.0002,2]
[380200512,1755606669863,-5536.72,0.0002,2]
[380200513,1755606669872,-480.0,0.0002,2]
[380200514,1755606669881,-480.0,0.0002,2]
[380200515,1755606669891,-668.52,0.0002,2]
[380200516,1755606669900,-480.0,0.0002,2]
[380200517,1755606669910,-480.0,0.0002,2]
[380200518,1755606669920,-1954.8,0.0002,2]
[380200519,1755606669930,-151.0,0.0002,2]
[380200520,1755606669939,-480.0,0.0002,2]
[380200521,1755606669948,-480.0,0.0002,2]
[380200522,1755606669957,-625.13,0.0002,2]
[380200523,1755606669966,-1385.74,0.0002,2]
[380200524,1755606669976,-151.0,0.0002,2]
[380200525,1755606669986,-151.0,0.0002,2]
[380200526,1755606669996,-480.0,0.0002,2]
[380200527,1755606670006,-480.0,0.0002,2]
[380200528,1755606670015,-480.0,0.0002,2]
[380200529,1755606670024,-480.0,0.0002,2]
[380200530,1755606670033,-480.0,0.0002,2]
[380200531,1755606670043,-480.0,0.0002,2]
[380200532,1755606670053,-480.0,0.0002,2]
[380200533,1755606670062,-958.56,0.0002,2]
[380200534,1755606670072,-480.0,0.0002,2]
[380200535,1755606670081,-480.0,0.0002,2]
[380200536,1755606670090,-480.0,0.0002,2]
[380200537,1755606670100,-480.0,0.0002,2]
[380200538,1755606670110,-539.78,0.0002,2]
[380200539,1755606670129,-480.0,0.0002,2]
[380200540,1755606670138,-480.0,0.0002,2]
[380200541,1755606670147,-151.0,0.0002,2]
[380200542,1755606670157,-151.0,0.0002,2]
[380200543,1755606670166,-480.0,0.0002,2]
[380200544,1755606670180,-480.0,0.0002,2]
[380200545,1755606670189,-480.0,0.0002,2]
[380200546,1755606670198,-1597.5,0.0002,2]
[380200547,1755606670207,-480.0,0.0002,2]
[380200548,1755606670218,-480.0,0.0002,2]
[380200549,1755606670227,-480.0,0.0002,2]
[380200550,1755606670236,-2607.08,0.0002,2]
[380200551,1755606670246,-2143.46,0.0002,2]
[380200552,1755606670257,-1677.17,0.0002,2]
[380200553,1755606670266,-215.79176414,0.0002,7]
[380200554,1755606670275,-480.0,0.0002,2]
[380200555,1755606670285,-1373.1,0.0002,2]
[380200556,1755606670294,-679.76,0.0002,2]
[380200557,1755606670303,-480.0,0.0002,2]
[380200558,1755606670313,-480.0,0.0002,2]
[380200559,1755606670322,-741.16,0.0002,2]
[380200560,1755606670331,-480.0,0.0002,2]
[380200561,1755606670341,-480.0,0.0002,2]
[380200562,1755606670351,-1287.57,0.0002,2]
[380200563,1755606670361,-1078.73,0.0002,2]
[380200564,1755606670370,-441.72662244,0.0002,2]
[380200565,1755606670380,-1427.51,0.0002,2]
[380200566,1755606670389,-153.952636,0.0002,2]
[380200567,1755606670398,-153.952636,0.0002,2]
[380200568,1755606670407,-480.0,0.0002,2]
[380200569,1755606670416,-153.952636,0.0002,2]
[380200570,1755606670426,-153.952636,0.0002,2]
[380200571,1755606670435,-356.542237,0.0002,2]
[380200572,1755606670444,-356.542237,0.0002,2]
[380200573,1755606670454,-1526.24,0.0002,2]
[380200574,1755606670463,-772.12,0.0002,2]
[380200575,1755606670472,-480.0,0.0002,2]
[380200576,1755606670481,-708.0,0.0002,2]
[380200577,1755606670490,-480.0,0.0002,2]
[380200578,1755606670499,-356.542237,0.0002,2]
[380200579,1755606670509,-480.0,0.0002,2]
[380200580,1755606670518,-356.542237,0.0002,2]
[380200581,1755606670528,-480.0,0.0002,2]
[380200582,1755606670537,-151.0,0.0002,2]
[380200583,1755606670546,-480.0,0.0002,2]
[380200584,1755606670556,-480.0,0.0002,2]
[380200585,1755606670566,-480.0,0.0002,2]
[380200586,1755606670575,-375.88899365,0.0002,7]
[380200587,1755606670585,-891.06,0.0002,2]
[380200588,1755606670595,-480.0,0.0002,2]
[380200589,1755606670606,-480.0,0.0002,2]
[380200590,1755606670615,-151.0,0.0002,2]
[380200591,1755606670624,-480.0,0.0002,2]
[380200592,1755606670634,-480.0,0.0002,2]
[380200593,1755606670643,-151.0,0.0002,2]
[380200594,1755606670652,-480.0,0.0002,2]
[380200595,1755606670661,-151.0,0.0002,2]
[380200596,1755606670671,-151.0,0.0002,2]
[380200597,1755606670680,-480.0,0.0002,2]
[380200598,1755606670689,-151.0,0.0002,2]
[380200599,1755606670698,-480.0,0.0002,2]
[380200600,1755606670707,-480.0,0.0002,2]
[380200601,1755606670716,-3354.34,0.0002,2]
[380200602,1755606670725,-480.0,0.0002,2]
[380200603,1755606670735,-480.0,0.0002,2]
[380200604,1755606670744,-480.0,0.0002,2]
[380200605,1755606670753,-480.0,0.0002,2]
[380200606,1755606670762,-990.79,0.0002,2]
[380200607,1755606670772,-480.0,0.0002,2]
[380200608,1755606670781,-151.0,0.0002,2]
[380200609,1755606670790,-263.07914136,0.0002,2]
[380200610,1755606670800,-160.0,0.0002,7]
[380200611,1755606670809,-500.0,0.0002,2]
[380200612,1755606670819,-480.0,0.0002,2]
[380200613,1755606670828,-151.0,0.0002,2]
[380200614,1755606670838,-480.0,0.0002,2]
[380200615,1755606670848,-480.0,0.0002,2]
[380200616,1755606670857,-151.0,0.0002,2]
[380200617,1755606670866,-480.0,0.0002,2]
[380200618,1755606670876,-480.0,0.0002,2]
[380200619,1755606670885,-168.67717568,0.0002,4]
[380200620,1755606670895,-1149.59,0.0002,2]
[380200621,1755606670904,-461.74606624,0.0002,2]
[380200622,1755606670913,-500.0,0.0002,2]
[380200623,1755606670922,-480.0,0.0002,2]
[380200624,1755606670932,-480.0,0.0002,2]
[380200625,1755606670941,-480.0,0.0002,2]
[380200626,1755606670951,-480.0,0.0002,2]
[380200627,1755606670962,-2624.4,0.0002,2]
[380200628,1755606670971,-152.61271,0.0002,2]
[380200629,1755606670981,-9959.75,0.0002,2]
[380200630,1755606670990,-157.21941982,0.0002,2]
[380200631,1755606671000,-480.0,0.0002,2]
[380200632,1755606671010,-480.0,0.0002,2]
[380200633,1755606671021,-480.0,0.0002,2]
[380200634,1755606671032,-500.0,0.0002,2]
[380200635,1755606671042,-151.0,0.0002,2]
[380200636,1755606671052,-151.0,0.0002,2]
[380200637,1755606671062,-615.12,0.0002,2]
[380200638,1755606671072,-1142.25,0.0002,2]
[380200639,1755606671081,-480.0,0.0002,2]
[380200640,1755606671090,-480.0,0.0002,2]
[380200641,1755606671101,-480.0,0.0002,2]
[380200642,1755606671110,-2872.66,0.0002,2]
[380200643,1755606671120,-151.0,0.0002,2]
[380200644,1755606671129,-480.0,0.0002,2]
[380200645,1755606671139,-151.0,0.0002,2]
[380200646,1755606671149,-151.0,0.0002,2]
[380200647,1755606671158,-1200.41,0.0002,2]
[380200648,1755606671168,-462.59989361,0.0002,2]
[380200649,1755606671182,-500.0,0.0002,2]
[380200650,1755606671192,-500.0,0.0002,2]
[380200651,1755606671201,-480.0,0.0002,2]
[380200652,1755606671210,-9859.29,0.0002,2]
[380200653,1755606671221,-151.0,0.0002,2]
[380200654,1755606671230,-480.0,0.0002,2]
[380200655,1755606671240,-480.0,0.0002,2]
[380200656,1755606671250,-480.0,0.0002,2]
[380200657,1755606671259,-1169.86,0.0002,2]
[380200658,1755606671269,-546.28,0.0002,2]
[380200659,1755606671278,-1028.3,0.0002,2]
[380200660,1755606671287,-157.908758,0.0002,2]
[380200661,1755606671296,-157.908758,0.0002,2]
[380200662,1755606671306,-398.06391846,0.00020021,2]
[380200663,1755606671315,-1000.0,0.00020021,2]
[380200664,1755606671325,-1000.0,0.00020021,2]
[380200665,1755606671334,-1000.0,0.00020021,2]
[380200666,1755606671343,-1000.0,0.00020021,2]
[380200667,1755606671354,-156.029089,0.0002005,14]
[380200668,1755606671364,-159.43811611,0.00020082,2]
[380200669,1755606671374,-645.0,0.000201,2]
[380200670,1755606671384,-500.0,0.00020133,2]
[380200671,1755606671393,-500.0,0.00020133,2]
[380200672,1755606671402,-580.8939941,0.00020137,2]
[380200673,1755606671411,-622.331178,0.00020187,2]
[380200674,1755606671420,-168.0,0.00020189,2]
[380200675,1755606671430,-168.0,0.00020209,2]
[380200676,1755606671439,-156.3845268,0.00020247,2]
[380200677,1755606671448,-156.38452681,0.00020247,2]
[380200678,1755606671458,-1009.2420939,0.00020268,2]
[380200679,1755606671467,-1000.0,0.00020268,2]
[380200680,1755606671476,-1500.0,0.00020268,2]
[380200681,1755606671485,-1608.87271415,0.00020268,2]
[380200682,1755606671494,-1500.0,0.00020268,2]
[380200683,1755606671503,-1500.0,0.00020268,2]
[380200684,1755606671513,-1500.0,0.00020268,2]
[380200685,1755606671522,-500.0,0.00020273,2]
[380200686,1755606671531,-160.25898591,0.00020273,2]
[380200687,1755606671540,-258.73555321,0.00020273,2]
[380200688,1755606671550,-315.79844541,0.00020273,2]
[380200689,1755606671559,-500.0,0.00020273,2]
[380200690,1755606671568,-500.0,0.00020273,2]
[380200691,1755606671577,-160.25793722,0.00020273,2]
[380200692,1755606671586,-158.65033626,0.00020273,2]
[380200693,1755606671595,-169.60984033,0.00020273,2]
[380200694,1755606671606,-495.55450042,0.00020273,2]
[380200695,1755606671615,-500.0,0.00020273,2]
[380200696,1755606671624,-605.04189955,0.00020273,2]
[380200697,1755606671633,-500.0,0.00020273,2]
[380200698,1755606671643,-480.0,0.00020273,2]
[380200699,1755606671652,-480.0,0.00020273,2]
[380200700,1755606671661,-480.0,0.00020273,2]
[380200701,1755606671669,-480.0,0.00020273,2]
[380200702,1755606671678,-480.0,0.00020273,2]
[380200703,1755606671687,-480.0,0.00020273,2]
[380200704,1755606671696,-480.0,0.00020273,2]
[380200705,1755606671706,-480.0,0.00020273,2]
[380200706,1755606671715,-344.31206177,0.00020273,2]
[380200707,1755606671724,-480.0,0.00020273,2]
[380200708,1755606671733,-480.0,0.00020273,2]
[380200709,1755606671743,-480.0,0.00020273,2]
[380200710,1755606671752,-480.0,0.00020273,2]
[380200711,1755606671761,-480.0,0.00020273,2]
[380200712,1755606671770,-151.0,0.00020273,2]
[380200713,1755606671779,-480.0,0.00020273,2]
[380200714,1755606671788,-480.0,0.00020273,2]
[380200715,1755606671797,-433.98264646,0.00020273,2]
[380200716,1755606671806,-480.0,0.00020273,2]
[380200717,1755606671815,-480.0,0.00020273,2]
[380200718,1755606671824,-480.0,0.00020273,2]
[380200719,1755606671834,-480.0,0.00020273,2]
[380200720,1755606671843,-480.0,0.00020273,2]
[380200721,1755606671853,-480.0,0.00020273,2]
[380200722,1755606671862,-480.0,0.00020273,2]
[380200723,1755606671871,-480.0,0.00020273,2]
[380200724,1755606671881,-480.0,0.00020273,2]
[380200725,1755606671890,-151.741426,0.00020273,2]
[380200726,1755606671900,-480.0,0.00020273,2]
[380200727,1755606671909,-480.0,0.00020273,2]
[380200728,1755606671919,-480.0,0.00020273,2]
[380200729,1755606671928,-151.0,0.00020273,2]
[380200730,1755606671937,-480.0,0.00020273,2]
[380200731,1755606671946,-480.0,0.00020273,2]
[380200732,1755606671956,-480.0,0.00020273,2]
[380200733,1755606671965,-480.0,0.00020273,2]
[380200734,1755606671975,-216.063153,0.00020273,2]
[380200735,1755606671984,-480.0,0.00020273,2]
[380200736,1755606671993,-480.0,0.00020273,2]
[380200737,1755606672003,-480.0,0.00020273,2]
[380200738,1755606672013,-480.0,0.00020273,2]
[380200739,1755606672023,-272.0199029,0.00020273,2]
[380200740,1755606672032,-480.0,0.00020273,2]
[380200741,1755606672042,-480.0,0.00020273,2]
[380200742,1755606672052,-480.0,0.00020273,2]
[380200743,1755606672062,-480.0,0.00020273,2]
[380200744,1755606672072,-480.0,0.00020273,2]
[380200745,1755606672081,-480.0,0.00020273,2]
[380200746,1755606672091,-480.0,0.00020273,2]
[380200747,1755606672101,-486.36,0.00020273,2]
[380200748,1755606672111,-480.0,0.00020273,2]
[380200749,1755606672120,-151.0,0.00020273,2]
[380200750,1755606672129,-480.0,0.00020273,2]
[380200751,1755606672138,-480.0,0.00020273,2]
[380200752,1755606672147,-480.0,0.00020273,2]
[380200753,1755606672157,-480.0,0.00020273,2]
[380200754,1755606672166,-480.0,0.00020273,2]
[380200755,1755606672179,-540.09,0.00020273,2]
[380200756,1755606672188,-480.0,0.00020273,2]
[380200757,1755606672197,-480.0,0.00020273,2]
[380200758,1755606672207,-480.0,0.00020273,2]
[380200759,1755606672217,-480.0,0.00020273,2]
[380200760,1755606672226,-480.0,0.00020273,2]
[380200761,1755606672236,-480.0,0.00020273,2]
[380200762,1755606672246,-480.0,0.00020273,2]
[380200763,1755606672256,-237.30860796,0.00020273,2]
[380200764,1755606672266,-864.15,0.00020273,2]
[380200765,1755606672275,-480.0,0.00020273,2]
[380200766,1755606672284,-480.0,0.00020273,2]
[380200767,1755606672294,-480.0,0.00020273,2]
[380200768,1755606672303,-480.0,0.00020273,2]
[380200769,1755606672311,-480.0,0.00020273,2]
[380200770,1755606672321,-480.0,0.00020273,2]
[380200771,1755606672330,-151.0,0.00020273,2]
[380200772,1755606672339,-480.0,0.00020273,2]
[380200773,1755606672353,-480.0,0.00020273,2]
[380200774,1755606672362,-480.0,0.00020273,2]
[380200775,1755606672371,-151.0,0.00020273,2]
[380200776,1755606672380,-480.0,0.00020273,2]
[380200777,1755606672389,-480.0,0.00020273,2]
[380200778,1755606672398,-508.47,0.00020273,2]
[380200779,1755606672408,-151.0,0.00020273,2]
[380200780,1755606672417,-242.482377,0.00020273,2]
[380200781,1755606672427,-206.1040576,0.00020273,2]
[380200782,1755606672437,-242.482377,0.00020273,2]
[380200783,1755606672446,-480.0,0.00020273,2]
[380200784,1755606672455,-480.0,0.00020273,2]
[380200785,1755606672464,-515.79,0.00020273,2]
[380200786,1755606672473,-420.0,0.00020273,2]
[380200787,1755606672483,-480.0,0.00020273,2]
[380200788,1755606672493,-480.0,0.00020273,2]
[380200789,1755606672502,-480.0,0.00020273,2]
[380200790,1755606672512,-560.19,0.00020273,2]
[380200791,1755606672521,-480.0,0.00020273,2]
[380200792,1755606672530,-151.0,0.00020273,2]
[380200793,1755606672539,-480.0,0.00020273,2]
[380200794,1755606672548,-151.0,0.00020273,2]
[380200795,1755606672558,-480.0,0.00020273,2]
[380200796,1755606672567,-480.0,0.00020273,2]
[380200797,1755606672576,-480.0,0.00020273,2]
[380200798,1755606672585,-480.0,0.00020273,2]
[380200799,1755606672594,-480.0,0.00020273,2]
[380200800,1755606672607,-465.13764292,0.00020273,2]
[380200801,1755606672616,-480.0,0.00020273,2]
[380200802,1755606672625,-480.0,0.00020273,2]
[380200803,1755606672634,-480.0,0.00020273,2]
[380200804,1755606672643,-480.0,0.00020273,2]
[380200805,1755606672653,-480.0,0.00020273,2]
[380200806,1755606672662,-480.0,0.00020273,2]
[380200807,1755606672671,-480.0,0.00020273,2]
[380200808,1755606672680,-308.154346,0.00020273,2]
[380200809,1755606672689,-308.154346,0.00020273,2]
[380200810,1755606672698,-524.72924993,0.00020273,2]
[380200811,1755606672707,-308.154346,0.00020273,2]
[380200812,1755606672717,-308.154346,0.00020273,2]
[380200813,1755606672726,-480.0,0.00020273,2]
[380200814,1755606672735,-480.0,0.00020273,2]
[380200815,1755606672744,-462.89410151,0.00020273,2]
[380200816,1755606672754,-460.0,0.00020273,2]
[380200817,1755606672763,-480.0,0.00020273,2]
[380200818,1755606672772,-463.69089332,0.00020273,2]
[380200819,1755606672781,-480.0,0.00020273,2]
[380200820,1755606672790,-480.0,0.00020273,2]
[380200821,1755606672800,-480.0,0.00020273,2]
[380200822,1755606672809,-1065.94,0.00020273,2]
[380200823,1755606672818,-480.0,0.00020273,2]
[380200824,1755606672826,-243.887521,0.00020273,2]
[380200825,1755606672836,-243.887521,0.00020273,2]
[380200826,1755606672846,-480.0,0.00020273,2]
[380200827,1755606672859,-440.0,0.00020273,2]
[380200828,1755606672868,-1735.33,0.00020273,2]
[380200829,1755606672878,-480.0,0.00020273,2]
[380200830,1755606672887,-480.0,0.00020273,2]
[380200831,1755606672896,-930.92,0.00020273,2]
[380200832,1755606673039,-480.0,0.00020273,2]
[380200833,1755606673049,-480.0,0.00020273,2]
[380200834,1755606673059,-151.0,0.00020273,2]
[380200835,1755606673068,-480.0,0.00020273,2]
[380200836,1755606673078,-480.0,0.00020273,2]
[380200837,1755606673088,-480.0,0.00020273,2]
[380200838,1755606673097,-480.0,0.00020273,2]
[380200839,1755606673111,-480.0,0.00020273,2]
[380200840,1755606673121,-480.0,0.00020273,2]
[380200841,1755606673130,-480.0,0.00020273,2]
[380200842,1755606673140,-728.14,0.00020273,2]
[380200843,1755606673150,-151.0,0.00020273,2]
[380200844,1755606673160,-480.0,0.00020273,2]
[380200845,1755606673173,-480.0,0.00020273,2]
[380200846,1755606673183,-480.0,0.00020273,2]
[380200847,1755606673192,-480.0,0.00020273,2]
[380200848,1755606673202,-480.0,0.00020273,2]
[380200849,1755606673211,-480.0,0.00020273,2]
[380200850,1755606673221,-716.75,0.00020273,2]
[380200851,1755606673230,-151.0,0.00020273,2]
[380200852,1755606673239,-480.0,0.00020273,2]
[380200853,1755606673250,-151.0,0.00020273,2]
[380200854,1755606673260,-480.0,0.00020273,2]
[380200855,1755606673269,-480.0,0.00020273,2]
[380200856,1755606673279,-480.0,0.00020273,2]
[380200857,1755606673288,-480.0,0.00020273,2]
[380200858,1755606673298,-480.0,0.00020273,2]
[380200859,1755606673307,-480.0,0.00020273,2]
[380200860,1755606673317,-480.0,0.00020273,2]
[380200861,1755606673326,-480.0,0.00020273,2]
[380200862,1755606673335,-480.0,0.00020273,2]
[380200863,1755606673345,-480.0,0.00020273,2]
[380200864,1755606673355,-480.0,0.00020273,2]
[380200865,1755606673365,-413.34283794,0.00020273,2]
[380200866,1755606673374,-624.26543433,0.00020273,2]
[380200867,1755606673384,-480.0,0.00020273,2]
[380200868,1755606673393,-480.0,0.00020273,2]
[380200869,1755606673403,-480.0,0.00020273,2]
[380200870,1755606673412,-480.0,0.00020273,2]
[380200871,1755606673422,-480.0,0.00020273,2]
[380200872,1755606673433,-423.50995364,0.00020273,2]
[380200873,1755606673442,-480.0,0.00020273,2]
[380200874,1755606673452,-740.67,0.00020273,2]
[380200875,1755606673461,-480.0,0.00020273,2]
[380200876,1755606673471,-2744.94,0.00020273,2]
[380200877,1755606673480,-480.0,0.00020273,2]
[380200878,1755606673490,-480.0,0.00020273,2]
[380200879,1755606673499,-480.0,0.00020273,2]
[380200880,1755606673510,-480.0,0.00020273,2]
[380200881,1755606673519,-480.0,0.00020273,2]
[380200882,1755606673529,-480.0,0.00020273,2]
[380200883,1755606673538,-676.37,0.00020273,2]
[380200884,1755606673547,-482.880756,0.00020273,2]
[380200885,1755606673556,-480.0,0.00020273,2]
[380200886,1755606673566,-480.0,0.00020273,2]
[380200887,1755606673575,-480.0,0.00020273,2]
[380200888,1755606673584,-482.880756,0.00020273,2]
[380200889,1755606673593,-198.79811,0.00020273,2]
[380200890,1755606673605,-731.95,0.00020273,2]
[380200891,1755606673614,-482.25843446,0.00020273,2]
[380200892,1755606673624,-480.0,0.00020273,2]
[380200893,1755606673633,-198.79811,0.00020273,2]
[380200894,1755606673643,-480.0,0.00020273,2]
[380200895,1755606673652,-184.04179275,0.00020273,2]
[380200896,1755606673661,-490.88,0.00020273,2]
[380200897,1755606673671,-152.087474,0.00020273,2]
[380200898,1755606673680,-595.1,0.00020273,2]
[380200899,1755606673689,-152.087474,0.00020273,2]
[380200900,1755606673698,-151.0,0.00020273,2]
[380200901,1755606673707,-480.0,0.00020273,2]
[380200902,1755606673717,-480.0,0.00020273,2]
[380200903,1755606673726,-195.113254,0.00020273,2]
[380200904,1755606673735,-480.0,0.00020273,2]
[380200905,1755606673745,-493.62,0.00020273,2]
[380200906,1755606673754,-480.0,0.00020273,2]
[380200907,1755606673764,-2671.17,0.00020273,2]
[380200908,1755606673773,-500.0,0.00020273,2]
[380200909,1755606673783,-480.0,0.00020273,2]
[380200910,1755606673792,-195.113254,0.00020273,2]
[380200911,1755606673801,-826.15,0.00020273,2]
[380200912,1755606673811,-480.0,0.00020273,2]
[380200913,1755606673820,-480.0,0.00020273,2]
[380200914,1755606673830,-2025.37,0.00020273,2]
[380200915,1755606673839,-1110.34,0.00020273,2]
[380200916,1755606673848,-480.0,0.00020273,2]
[380200917,1755606673860,-480.0,0.00020273,2]
[380200918,1755606673869,-480.0,0.00020273,2]
[380200919,1755606673879,-356.13498622,0.00020273,2]
[380200920,1755606673889,-480.0,0.00020273,2]
[380200921,1755606673898,-480.0,0.00020273,2]
[380200922,1755606673907,-1463.26,0.00020273,2]
[380200923,1755606673916,-480.0,0.00020273,2]
[380200924,1755606673926,-480.0,0.00020273,2]
[380200925,1755606673935,-652.34,0.00020273,2]
[380200926,1755606673944,-480.0,0.00020273,2]
[380200927,1755606673953,-460.0,0.00020273,2]
[380200928,1755606673962,-480.0,0.00020273,2]
[380200929,1755606673972,-480.0,0.00020273,2]
[380200930,1755606673981,-480.0,0.00020273,2]
[380200931,1755606673991,-488.04,0.00020273,2]
[380200932,1755606674001,-480.0,0.00020273,2]
[380200933,1755606674010,-480.0,0.00020273,2]
[380200934,1755606674019,-480.0,0.00020273,2]
[380200935,1755606674029,-554.67,0.00020273,2]
[380200936,1755606674039,-480.0,0.00020273,2]
[380200937,1755606674049,-1102.08,0.00020273,2]
[380200938,1755606674058,-480.0,0.00020273,2]
[380200939,1755606674068,-480.0,0.00020273,2]
[380200940,1755606674078,-604.1,0.00020273,2]
[380200941,1755606674087,-480.0,0.00020273,2]
[380200942,1755606674096,-480.0,0.00020273,2]
[380200943,1755606674110,-480.0,0.00020273,2]
[380200944,1755606674119,-480.0,0.00020273,2]
[380200945,1755606674129,-1056.9,0.00020273,2]
[380200946,1755606674138,-480.0,0.00020273,2]
[380200947,1755606674147,-480.0,0.00020273,2]
[380200948,1755606674157,-480.0,0.00020273,2]
[380200949,1755606674169,-1149.67,0.00020273,2]
[380200950,1755606674181,-881.95,0.00020273,2]
[380200951,1755606674190,-480.0,0.00020273,2]
[380200952,1755606674199,-899.0,0.00020273,2]
[380200953,1755606674209,-480.0,0.00020273,2]
[380200954,1755606674219,-480.0,0.00020273,2]
[380200955,1755606674229,-1339.97,0.00020273,2]
[380200956,1755606674238,-480.0,0.00020273,2]
[380200957,1755606674249,-480.0,0.00020273,2]
[380200958,1755606674259,-3307.83,0.00020273,2]
[380200959,1755606674269,-3318.85,0.00020273,2]
[380200960,1755606674278,-480.0,0.00020273,2]
[380200961,1755606674287,-480.0,0.00020273,2]
[380200962,1755606674297,-480.0,0.00020273,2]